bitfinex/quotes_BTCUSD_20241201
["timestamp","ask_amount","ask_price","bid_price","bid_amount"]
[1733044290105,0.01076461,97032.0,97031.0,0.14592083]
[1733044290557,0.00976461,97032.0,97031.0,0.14092083]
[1733044290940,0.00710109,97032.0,97031.0,0.14592083]
[1733044291150,0.0107565,97032.0,97031.0,0.14592083]
[1733044292053,0.00710109,97032.0,97031.0,0.14592083]
[1733044292260,0.01075768,97032.0,97031.0,0.14592083]
[1733044293495,0.01075768,97032.0,97031.0,0.14594862]
[1733044293496,0.00710109,97032.0,97031.0,0.14594862]
[1733044293657,0.01075768,97032.0,97031.0,0.14594862]
[1733044293877,0.00710109,97032.0,97031.0,0.14594862]
[1733044294301,0.0107579,97032.0,97031.0,0.14594862]
[1733044294941,0.00710109,97032.0,97031.0,0.14594862]
[1733044295145,0.00710109,97032.0,97031.0,0.14777256]
[1733044297124,0.00710109,97032.0,97031.0,0.14777407]
[1733044297552,0.00710109,97032.0,97031.0,0.15777407]
[1733044297989,0.00710109,97032.0,97031.0,0.4703822]
[1733044298212,0.00710109,97032.0,97031.0,0.15595013]
[1733044298423,0.00710109,97032.0,97031.0,0.47038202]
[1733044298641,0.00710109,97032.0,97031.0,0.46855826]
[1733044298884,0.00710109,97032.0,97031.0,0.15595013]
[1733044299111,0.00710109,97032.0,97031.0,0.15777388]
[1733044299342,0.00710109,97032.0,97031.0,0.47034253]
[1733044299582,0.00710109,97032.0,97031.0,0.46851878]
[1733044300237,0.00710109,97032.0,97031.0,0.4685215]
[1733044301204,0.00710109,97032.0,97031.0,0.15595285]
[1733044301449,0.00710109,97032.0,97031.0,0.47034525]
[1733044301660,0.00710109,97032.0,97031.0,0.4685215]
[1733044303676,0.00710109,97032.0,97031.0,0.46852569]
[1733044303901,0.00710109,97032.0,97031.0,0.15595704]
[1733044304113,0.00710109,97032.0,97031.0,0.15778079]
[1733044305199,0.00710109,97032.0,97031.0,0.270626]
[1733044305413,0.00710109,97032.0,97031.0,0.26880225]
[1733044305907,0.0017296,97049.0,97048.0,0.216083]
[1733044306131,0.0017296,97049.0,97048.0,0.14512744]
[1733044306376,0.0017296,97049.0,97048.0,0.14695098]
[1733044307040,0.0027296,97049.0,97048.0,0.15095098]
[1733044307703,0.0027296,97049.0,97048.0,0.14912744]
[1733044308358,0.0027296,97049.0,97048.0,0.15412744]
[1733044308573,0.0017296,97049.0,97048.0,0.15112744]
[1733044308866,0.0027296,97049.0,97048.0,0.15112744]
[1733044309083,0.0037296,97049.0,97048.0,0.10922744]
[1733044310364,0.0037296,97049.0,97048.0,0.10722744]
[1733044312408,0.00741144,97049.0,97048.0,0.10722744]
[1733044312628,0.0037296,97049.0,97048.0,0.10722744]
[1733044313050,0.00741088,97049.0,97048.0,0.10722744]
[1733044313522,0.0037296,97049.0,97048.0,0.10722744]
[1733044315496,0.00741088,97049.0,97048.0,0.10722744]
[1733044316766,0.00741088,97049.0,97048.0,0.02172744]
[1733044319100,0.21349188,97049.0,97048.0,0.02172744]
[1733044320566,0.21349188,97049.0,97048.0,0.02172074]
[1733044328731,0.21349188,97049.0,97048.0,0.02258494]
[1733044329579,0.21349188,97049.0,97048.0,0.02259047]
[1733044335918,0.25969188,97049.0,97048.0,0.02259047]
[1733044336125,0.40969188,97049.0,97048.0,0.02259047]
[1733044336571,0.40969188,97049.0,97048.0,0.02259339]
[1733044337008,0.40869188,97049.0,97048.0,0.01459339]
[1733044337215,0.40869188,97049.0,97048.0,0.01959339]
[1733044337645,0.40869188,97049.0,97048.0,0.01459339]
[1733044337845,0.40769188,97049.0,97048.0,0.00859339]
[1733044338271,0.40769188,97049.0,97048.0,0.0008642]
[1733044338480,0.40769188,97049.0,97048.0,0.0048642]
[1733044339118,0.40769188,97049.0,97048.0,0.0008642]
[1733044339354,0.40769188,97049.0,97048.0,0.0028642]
[1733044343253,0.40769188,97049.0,97048.0,0.0008642]
[1733044344747,0.40769188,97049.0,97048.0,0.0028642]
[1733044344957,0.36149188,97049.0,97048.0,0.0028642]
[1733044345385,0.36149188,97049.0,97048.0,0.0008642]
[1733044345593,0.36149188,97049.0,97048.0,0.0028642]
[1733044346259,0.36149188,97049.0,97048.0,0.0008642]
[1733044346453,0.36149188,97049.0,97048.0,0.0028642]
[1733044347760,0.36149188,97049.0,97048.0,0.0018642]
[1733044347968,0.36149188,97049.0,97048.0,0.0008642]
[1733044348188,0.36149188,97049.0,97048.0,0.0038642]
[1733044348394,0.36149188,97049.0,97048.0,0.0068642]
[1733044348596,0.36149188,97049.0,97048.0,0.0008642]
[1733044348796,0.36149188,97049.0,97048.0,0.0038642]
[1733044349009,0.36149188,97049.0,97048.0,0.0068642]
[1733044353934,0.00541088,97049.0,97048.0,0.0068642]
[1733044354374,0.21149188,97049.0,97048.0,0.0068642]
[1733044354676,0.36149188,97049.0,97048.0,0.0068642]
[1733044354918,0.36149188,97049.0,97048.0,0.0008642]
[1733044355129,0.36149188,97049.0,97048.0,0.0048642]
[1733044355841,0.36149188,97049.0,97048.0,0.0088642]
[1733044356073,0.36149188,97049.0,97048.0,0.0048642]
[1733044356285,0.36149188,97049.0,97048.0,0.0028642]
[1733044356594,0.36149188,97049.0,97048.0,0.0058642]
[1733044357702,0.36149188,97049.0,97048.0,0.0038642]
[1733044357917,0.36149188,97049.0,97048.0,0.0008642]
[1733044358133,0.36149188,97049.0,97048.0,0.0028642]
[1733044358565,0.36149188,97049.0,97048.0,0.0048642]
[1733044358990,0.36149188,97049.0,97048.0,0.0028642]
[1733044359675,0.36149188,97049.0,97048.0,0.0038642]
[1733044359889,0.36149188,97049.0,97048.0,0.0018642]
[1733044360981,0.36149188,97049.0,97048.0,0.0008642]
[1733044361378,0.36149188,97049.0,97048.0,0.0018642]
[1733044361641,0.36149188,97049.0,97048.0,0.0008642]
[1733044361861,0.36149188,97049.0,97048.0,0.0028642]
[1733044362073,0.36149188,97049.0,97048.0,0.0038642]
[1733044362291,0.36149188,97049.0,97048.0,0.0028642]
[1733044362726,0.36149188,97049.0,97048.0,0.1288642]
[1733044363167,0.36149188,97049.0,97048.0,0.0038642]
[1733044363358,0.36149188,97049.0,97048.0,0.0018642]
[1733044364146,0.36149188,97049.0,97048.0,0.0028642]
[1733044365197,0.36149188,97049.0,97048.0,0.0038642]
[1733044365407,0.36149188,97049.0,97048.0,0.0028642]
[1733044365661,0.36149188,97049.0,97048.0,0.0008642]
[1733044365859,0.36149188,97049.0,97048.0,0.0018642]
[1733044366038,0.36149188,97049.0,97048.0,0.0048642]
[1733044366247,0.36149188,97049.0,97048.0,0.0038642]
[1733044366661,0.36149188,97049.0,97048.0,0.0008642]
[1733044367059,0.36149188,97049.0,97048.0,0.0038642]
[1733044367467,0.36149188,97049.0,97048.0,0.0008642]
[1733044367680,0.36149188,97049.0,97048.0,0.0018642]
[1733044368058,0.36149188,97049.0,97048.0,0.0008642]
[1733044368264,0.36149188,97049.0,97048.0,0.0018642]
[1733044368678,0.36149188,97049.0,97048.0,0.0008642]
[1733044368969,0.36149188,97049.0,97048.0,0.0018642]
[1733044369173,0.36149188,97049.0,97048.0,0.0048642]
[1733044369387,0.36149188,97049.0,97048.0,0.0038642]
[1733044369597,0.36149188,97049.0,97048.0,0.0018642]
[1733044369792,0.36149188,97049.0,97048.0,0.0048642]
[1733044370438,0.36149188,97049.0,97048.0,0.0018642]
[1733044370638,0.36149188,97049.0,97048.0,0.0048642]
[1733044371064,0.36149188,97049.0,97048.0,0.0038642]
[1733044371302,0.36149188,97049.0,97048.0,0.0048642]
[1733044371737,0.36149188,97049.0,97048.0,0.0038642]
[1733044372162,0.36149188,97049.0,97048.0,0.0008642]
[1733044372385,0.36149188,97049.0,97048.0,0.0018642]
[1733044372605,0.36149188,97049.0,97048.0,0.0048642]
[1733044372847,0.36149188,97049.0,97048.0,0.0038642]
[1733044373056,0.36149188,97049.0,97048.0,0.0008642]
[1733044373502,0.36149188,97049.0,97048.0,0.0038642]
[1733044374134,0.36149188,97049.0,97048.0,0.0008642]
[1733044374784,0.36149188,97049.0,97048.0,0.0018642]
[1733044374973,0.36149188,97049.0,97048.0,0.0008642]
[1733044375406,0.36149188,97049.0,97048.0,0.0028642]
[1733044375612,0.36149188,97049.0,97048.0,0.0038642]
[1733044376025,0.36149188,97049.0,97048.0,0.0058642]
[1733044376235,0.36149188,97049.0,97048.0,0.0028642]
[1733044376450,0.36149188,97049.0,97048.0,0.0018642]
[1733044377074,0.36149188,97049.0,97048.0,0.0008642]
[1733044377318,0.36149188,97049.0,97048.0,0.0028642]
[1733044378248,0.36149188,97049.0,97048.0,0.0038642]
[1733044382952,0.36149188,97049.0,97048.0,0.0018642]
[1733044383379,0.36149188,97049.0,97048.0,0.0038642]
[1733044385757,0.36149188,97049.0,97048.0,0.0038642]
[1733044386410,0.41019188,97049.0,97048.0,0.0038642]
[1733044387256,0.41019188,97049.0,97048.0,0.0018642]
[1733044387465,0.41019188,97049.0,97048.0,0.0008642]
[1733044387682,0.41019188,97049.0,97048.0,0.0018642]
[1733044387923,0.41119188,97049.0,97048.0,0.0018642]
[1733044390694,0.36249188,97049.0,97048.0,0.0018642]
[1733044415712,0.36249188,97049.0,97048.0,0.0800642]
[1733044415927,0.36249188,97049.0,97048.0,0.1260642]
[1733044418547,0.21249188,97049.0,97048.0,0.1260642]
[1733044431862,0.21249188,97049.0,97048.0,0.0118642]
[1733044432083,0.21249188,97049.0,97048.0,0.0018642]
[1733044437156,0.21249188,97049.0,97048.0,0.0118642]
[1733044437358,0.21249188,97049.0,97048.0,0.0018642]
[1733044439056,0.21249188,97049.0,97048.0,0.1276642]
[1733044439662,0.21249188,97049.0,97048.0,0.0784642]
[1733044447298,0.21249188,97049.0,97048.0,0.0018642]
[1733044453924,0.00641088,97049.0,97048.0,0.0589642]
[1733044455955,0.00641088,97049.0,97048.0,0.0489642]
[1733044462345,0.00641088,97049.0,97048.0,0.3622]
[1733044462554,0.00641088,97049.0,97048.0,0.3622008]
[1733044462768,0.00641088,97049.0,97048.0,0.0489642]
[1733044462983,0.00641088,97049.0,97048.0,0.36219962]
[1733044463186,0.00641088,97049.0,97048.0,0.37219962]
[1733044463411,0.00641088,97049.0,97048.0,0.1391642]
[1733044463625,0.00641088,97049.0,97048.0,0.1291642]
[1733044463843,0.00641088,97049.0,97048.0,0.1391642]
[1733044464061,0.0027296,97049.0,97048.0,0.1371642]
[1733044464279,0.0027296,97049.0,97048.0,0.13898754]
[1733044464709,0.0008648,97050.0,97049.0,0.008]
[1733044464920,0.0008648,97050.0,97049.0,0.13722334]
[1733044465339,0.0008648,97050.0,97049.0,0.24006855]
[1733044465546,0.0008648,97050.0,97049.0,0.74022747]
[1733044465978,0.0008648,97050.0,97049.0,0.27043167]
[1733044466226,0.0018648,97050.0,97049.0,0.27643167]
[1733044466438,0.0018648,97050.0,97049.0,0.24424521]
[1733044467560,0.0028648,97050.0,97049.0,0.25224521]
[1733044467787,0.0008648,97050.0,97049.0,0.23824521]
[1733044468002,0.0018648,97050.0,97049.0,0.24724521]
[1733044468236,0.0028648,97050.0,97049.0,0.25624521]
[1733044473369,0.0041258,97050.0,97049.0,0.25624521]
[1733044480113,0.0041258,97050.0,97049.0,0.26624521]
[1733044480913,0.0041258,97050.0,97049.0,0.28924521]
[1733044481125,0.0041258,97050.0,97049.0,0.27924521]
[1733044484217,0.206002,97086.0,97077.0,0.008]
[1733044484428,0.206002,97086.0,97079.0,0.40912517]
[1733044484648,0.00433571,97083.0,97081.0,0.40912517]
[1733044484850,0.206001,97087.0,97081.0,0.40912517]
[1733044485562,0.00433213,97083.0,97081.0,0.40912517]
[1733044485771,0.00433213,97083.0,97082.0,0.001823]
[1733044485970,0.00104351,97084.0,97081.0,0.40912517]
[1733044486204,0.00433387,97082.0,97081.0,0.40912517]
[1733044486412,0.00433465,97083.0,97081.0,0.40912517]
[1733044486621,0.00104351,97084.0,97082.0,0.00182299]
[1733044487047,0.00104351,97084.0,97083.0,0.0935]
[1733044487258,0.00104351,97084.0,97083.0,0.08532289]
[1733044487472,0.00204351,97084.0,97083.0,0.08532289]
[1733044487676,0.00104351,97084.0,97083.0,0.09532289]
[1733044488097,0.00104351,97084.0,97083.0,0.13032289]
[1733044488306,0.00104351,97084.0,97083.0,0.2331681]
[1733044488518,0.00104351,97084.0,97083.0,0.23134521]
[1733044488738,0.00104351,97084.0,97083.0,0.23934521]
[1733044488947,0.00104351,97084.0,97083.0,0.24934521]
[1733044489159,0.00104351,97084.0,97083.0,0.25934521]
[1733044489574,0.00104351,97084.0,97083.0,0.26334521]
[1733044490840,0.00104351,97084.0,97083.0,0.25834521]
[1733044491275,0.00104351,97084.0,97083.0,0.24434521]
[1733044491479,0.00104351,97084.0,97083.0,0.23134521]
[1733044491729,0.00104351,97084.0,97083.0,0.23934521]
[1733044491936,0.00104351,97084.0,97083.0,0.24834521]
[1733044492140,0.00104351,97084.0,97083.0,0.23134521]
[1733044492560,0.00104351,97084.0,97083.0,0.24734521]
[1733044492806,0.00104351,97084.0,97083.0,0.23834521]
[1733044493027,0.00104351,97084.0,97083.0,0.23134521]
[1733044493233,0.00104351,97084.0,97083.0,0.23834521]
[1733044493451,0.00104351,97084.0,97083.0,0.54927639]
[1733044494099,0.00104351,97084.0,97083.0,0.55827639]
[1733044494587,0.00104351,97084.0,97083.0,0.23134521]
[1733044495068,0.00104351,97084.0,97083.0,0.23934521]
[1733044495543,0.00104351,97084.0,97083.0,0.24834521]
[1733044497898,0.00104351,97084.0,97083.0,0.25961655]
[1733044499748,0.00104351,97084.0,97083.0,0.025]
[1733044499974,0.00104351,97084.0,97083.0,0.33590712]
[1733044500219,0.00104351,97084.0,97083.0,0.017]
[1733044500694,0.0064752,97084.0,97083.0,0.4252882]
[1733044500942,0.0064752,97084.0,97083.0,0.008]
[1733044501146,0.206009,97083.0,97082.0,0.4082882]
[1733044501354,0.206009,97083.0,97073.0,0.008]
[1733044501582,0.206025,97076.0,97074.0,0.00182312]
[1733044501800,0.206025,97076.0,97073.0,0.008]
[1733044502028,0.00541516,97075.0,97073.0,0.008]
[1733044503206,0.206028,97074.0,97073.0,0.014]
[1733044503428,0.00541415,97074.0,97073.0,0.014]
[1733044503691,0.206012,97082.0,97073.0,0.014]
[1733044503911,0.00104351,97084.0,97074.0,0.00182313]
[1733044504144,0.00104351,97084.0,97083.0,0.008]
[1733044504371,0.00104351,97084.0,97083.0,0.00982287]
[1733044505584,0.00104351,97084.0,97083.0,0.01482287]
[1733044505806,0.00104351,97084.0,97083.0,0.01882287]
[1733044506015,0.00104351,97084.0,97083.0,0.12166808]
[1733044508620,0.00104351,97084.0,97083.0,0.11766808]
[1733044508799,0.00104351,97084.0,97083.0,0.11266808]
[1733044509004,0.00104351,97084.0,97083.0,0.11666808]
[1733044509269,0.00104351,97084.0,97083.0,0.12566808]
[1733044509486,0.00104351,97084.0,97083.0,0.12166808]
[1733044510729,0.00104351,97084.0,97083.0,0.12766808]
[1733044513253,0.00104351,97084.0,97080.0,0.206015]
[1733044513504,0.00104351,97084.0,97083.0,0.10284521]
[1733044513724,0.00104351,97084.0,97083.0,0.22856791]
[1733044513942,0.00104351,97084.0,97083.0,0.53834712]
[1733044514407,0.00104351,97084.0,97083.0,0.53825982]
[1733044514839,0.0008646,97096.0,97083.0,0.53825982]
[1733044515025,0.0008646,97096.0,97089.0,0.205996]
[1733044516184,0.0008646,97096.0,97089.0,0.38564121]
[1733044517093,0.0008646,97096.0,97089.0,0.39064121]
[1733044517941,0.0008646,97096.0,97089.0,0.38564121]
[1733044518377,0.0008646,97096.0,97089.0,0.40064121]
[1733044518585,0.0008646,97096.0,97089.0,0.38864121]
[1733044519171,0.0008646,97096.0,97089.0,0.13106121]
[1733044519635,0.0008646,97096.0,97089.0,0.33405721]
[1733044520087,0.0018647,97090.0,97089.0,0.34305721]
[1733044521123,0.0018647,97090.0,97089.0,0.35005721]
[1733044524758,0.0018647,97090.0,97089.0,0.0928]
[1733044525815,0.0018647,97090.0,97089.0,0.0946228]
[1733044527575,0.00607869,97090.0,97089.0,0.0946228]
[1733044527801,0.0018647,97090.0,97089.0,0.0946228]
[1733044528019,0.00607869,97090.0,97089.0,0.0928]
[1733044528259,0.00608755,97090.0,97089.0,0.0928]
[1733044528479,0.00608755,97090.0,97089.0,0.09462281]
[1733044529926,0.00608755,97090.0,97089.0,0.016]
[1733044530137,0.00608755,97090.0,97089.0,0.32761922]
[1733044530569,0.0018647,97090.0,97089.0,0.016]
[1733044530779,0.0018647,97090.0,97089.0,0.32952489]
[1733044531027,0.0018647,97090.0,97089.0,0.32770208]
[1733044531256,0.0018647,97090.0,97089.0,0.016]
[1733044531487,0.0018647,97090.0,97089.0,0.01782284]
[1733044531915,0.0018647,97090.0,97089.0,0.09642284]
[1733044532379,0.0018647,97090.0,97089.0,0.19926805]
[1733044533793,0.0008646,97096.0,97095.0,0.205983]
[1733044534025,0.0008646,97096.0,97095.0,0.20780565]
[1733044534745,0.0008646,97096.0,97090.0,0.205994]
[1733044534964,0.0008646,97096.0,97095.0,0.006]
[1733044535618,0.0008646,97096.0,97095.0,0.00182268]
[1733044535823,0.0018646,97096.0,97095.0,0.008]
[1733044536502,0.0018646,97096.0,97095.0,0.00982268]
[1733044537157,0.0018646,97096.0,97095.0,0.008]
[1733044537431,0.00609476,97096.0,97095.0,0.008]
[1733044537659,0.00609263,97096.0,97095.0,0.3198421]
[1733044537866,0.00609263,97096.0,97095.0,0.008]
[1733044538309,0.00609263,97096.0,97095.0,0.014]
[1733044539632,0.00609263,97096.0,97090.0,0.2929981]
[1733044539849,0.00609263,97096.0,97091.0,0.00182278]
[1733044541083,0.00509263,97096.0,97087.0,0.412]
[1733044541298,0.00509263,97096.0,97083.0,0.12577911]
[1733044541299,0.00509263,97096.0,97090.0,0.006]
[1733044541531,0.00609263,97096.0,97091.0,0.00182278]
[1733044541750,0.00509263,97096.0,97093.0,0.205988]
[1733044541976,0.00509263,97096.0,97094.0,0.00182278]
[1733044542205,0.0018646,97096.0,97092.0,0.20599]
[1733044542481,0.0018646,97096.0,97093.0,0.00182278]
[1733044542730,0.0018646,97096.0,97094.0,0.00182278]
[1733044542957,0.0008646,97096.0,97094.0,0.00182278]
[1733044543854,0.0008646,97096.0,97095.0,0.1256]
[1733044544063,0.0008646,97096.0,97095.0,0.12742265]
[1733044544277,0.0018646,97096.0,97095.0,0.12742265]
[1733044545109,0.0008646,97096.0,97095.0,0.12742265]
[1733044545550,0.0018646,97096.0,97095.0,0.13442265]
[1733044545967,0.0018646,97096.0,97095.0,0.13942265]
[1733044551405,0.0018646,97096.0,97095.0,0.012]
[1733044551632,0.0014986,97096.0,97095.0,0.01382268]
[1733044552343,0.00572681,97096.0,97095.0,0.01382268]
[1733044552597,0.0014986,97096.0,97095.0,0.012]
[1733044552843,0.00572681,97096.0,97095.0,0.012]
[1733044553070,0.0014986,97096.0,97095.0,0.012]
[1733044553549,0.00572681,97096.0,97095.0,0.012]
[1733044553777,0.0014986,97096.0,97095.0,0.012]
[1733044554022,0.00572681,97096.0,97095.0,0.0588]
[1733044554238,0.0014986,97096.0,97095.0,0.0588]
[1733044554722,0.0014986,97096.0,97095.0,0.06062275]
[1733044555748,0.0014986,97096.0,97095.0,0.0588]
[1733044556669,0.0014986,97096.0,97095.0,0.06062276]
[1733044557881,0.0014986,97096.0,97095.0,0.0588]
[1733044558135,0.0014986,97096.0,97095.0,0.06062275]
[1733044558843,0.0014986,97096.0,97095.0,0.06235135]
[1733044564251,0.05,97100.0,97096.0,0.205981]
[1733044564459,0.05,97100.0,97097.0,0.00182272]
[1733044565528,0.05,97100.0,97098.0,0.205977]
[1733044565742,0.05,97100.0,97097.0,0.005]
[1733044565954,0.05,97100.0,97097.0,0.21280073]
[1733044566386,0.05,97100.0,97097.0,0.210978]
[1733044566647,0.05,97100.0,97097.0,0.205978]
[1733044567077,0.05,97100.0,97099.0,0.287375]
[1733044567292,0.05,97100.0,97099.0,0.297375]
[1733044567512,0.05,97100.0,97099.0,0.287375]
[1733044569090,0.05,97100.0,97099.0,0.292375]
[1733044569726,0.05,97100.0,97099.0,0.296375]
[1733044570567,0.05,97100.0,97099.0,0.306375]
[1733044570791,0.00362117,97100.0,97099.0,0.45632021]
[1733044570992,0.00448547,97100.0,97099.0,0.47848994]
[1733044571220,0.00448547,97100.0,97099.0,0.50148994]
[1733044571429,0.0008644,97125.0,97099.0,0.57896494]
[1733044571639,0.0008644,97125.0,97101.0,0.33181621]
[1733044571852,0.0008644,97125.0,97119.0,0.334432]
[1733044572065,0.0008644,97125.0,97119.0,0.43727721]
[1733044572491,0.0008644,97125.0,97119.0,0.39017721]
[1733044572704,0.0008644,97125.0,97119.0,0.43727721]
[1733044573201,0.05117901,97120.0,97119.0,0.44627721]
[1733044573418,0.05017901,97120.0,97119.0,0.43727721]
[1733044573870,0.05117901,97120.0,97119.0,0.44627721]
[1733044574064,0.05117901,97120.0,97119.0,0.47838197]
[1733044574287,0.05117901,97120.0,97119.0,0.44627721]
[1733044574491,0.05117901,97120.0,97119.0,0.45427721]
[1733044575072,0.05117901,97120.0,97119.0,0.44527721]
[1733044575073,0.05017901,97120.0,97119.0,0.44527721]
[1733044575684,0.05017901,97120.0,97119.0,0.45427721]
[1733044575889,0.05017901,97120.0,97119.0,0.44627721]
[1733044576300,0.05117901,97120.0,97119.0,0.45527721]
[1733044576705,0.05017901,97120.0,97119.0,0.44627721]
[1733044577343,0.05117901,97120.0,97119.0,0.45527721]
[1733044578185,0.05117901,97120.0,97119.0,0.40817721]
[1733044578390,0.05117901,97120.0,97119.0,0.41893623]
[1733044580436,0.05117901,97120.0,97119.0,0.73042096]
[1733044580792,0.05117901,97120.0,97119.0,0.41893623]
[1733044580998,0.05117901,97120.0,97119.0,0.21300423]
[1733044581204,0.05117901,97120.0,97119.0,0.018]
[1733044581813,0.05543987,97120.0,97119.0,0.018]
[1733044582029,0.05117901,97120.0,97119.0,0.018]
[1733044582484,0.05117901,97120.0,97119.0,0.33125026]
[1733044582647,0.05117901,97120.0,97119.0,0.32942802]
[1733044582848,0.05117901,97120.0,97119.0,0.018]
[1733044583052,0.05117901,97120.0,97119.0,0.01982232]
[1733044583291,0.05204331,97120.0,97119.0,0.12266753]
[1733044583490,0.05204331,97120.0,97119.0,0.51545577]
[1733044583693,0.05204331,97120.0,97119.0,0.24934521]
[1733044591934,0.02886209,97120.0,97119.0,0.24934521]
[1733044593897,0.0008644,97125.0,97119.0,0.27234521]
[1733044594136,0.0008644,97125.0,97120.0,0.51652703]
[1733044595392,0.0018644,97125.0,97120.0,0.51652703]
[1733044595610,0.0028644,97125.0,97124.0,0.31105223]
[1733044595839,0.0028644,97125.0,97124.0,0.41389744]
[1733044596071,0.0018644,97125.0,97124.0,0.10284521]
[1733044596298,0.0018644,97125.0,97124.0,0.41389744]
[1733044596787,0.0028644,97125.0,97124.0,0.41389744]
[1733044597072,0.0008644,97125.0,97124.0,0.41389744]
[1733044598300,0.0008644,97125.0,97124.0,0.11084521]
[1733044598582,0.0018644,97125.0,97124.0,0.11984521]
[1733044599269,0.0018644,97125.0,97124.0,0.43089744]
[1733044600017,0.0018644,97125.0,97124.0,0.017]
[1733044600484,0.0051559,97125.0,97124.0,0.017]
[1733044600693,0.0018644,97125.0,97124.0,0.017]
[1733044601158,0.0051809,97125.0,97124.0,0.017]
[1733044601376,0.0018644,97125.0,97124.0,0.017]
[1733044601585,0.0051809,97125.0,97124.0,0.017]
[1733044601798,0.0018644,97125.0,97124.0,0.017]
[1733044601998,0.0051809,97125.0,97124.0,0.017]
[1733044602204,0.0018644,97125.0,97124.0,0.017]
[1733044602408,0.0051809,97125.0,97124.0,0.017]
[1733044602615,0.0018644,97125.0,97124.0,0.017]
[1733044602827,0.0051809,97125.0,97124.0,0.017]
[1733044603000,0.0018644,97125.0,97124.0,0.017]
[1733044603200,0.00518148,97125.0,97124.0,0.017]
[1733044603400,0.0018644,97125.0,97124.0,0.017]
[1733044603632,0.00518148,97125.0,97124.0,0.017]
[1733044603837,0.0018644,97125.0,97124.0,0.017]
[1733044604043,0.0057954,97125.0,97124.0,0.017]
[1733044604253,0.0018644,97125.0,97124.0,0.017]
[1733044604459,0.0057954,97125.0,97124.0,0.017]
[1733044604666,0.0018644,97125.0,97124.0,0.017]
[1733044605277,0.0057954,97125.0,97124.0,0.017]
[1733044605492,0.0018644,97125.0,97124.0,0.017]
[1733044606316,0.00520823,97125.0,97124.0,0.017]
[1733044614297,0.00520823,97125.0,97124.0,0.0188222]
[1733044614298,0.0018644,97125.0,97124.0,0.0188222]
[1733044614965,0.0018644,97125.0,97124.0,0.20296741]
[1733044617495,0.0008649,97134.0,97133.0,0.205903]
[1733044618734,0.0008649,97134.0,97133.0,0.210903]
[1733044618947,0.0008649,97134.0,97133.0,0.21272501]
[1733044619176,0.0018649,97134.0,97133.0,0.22072501]
[1733044619383,0.0018649,97134.0,97133.0,0.218903]
[1733044620900,0.0018649,97134.0,97133.0,0.013]
[1733044621120,0.0018649,97134.0,97133.0,0.01482204]
[1733044621620,0.0018649,97134.0,97133.0,0.013]
[1733044621803,0.00523001,97134.0,97133.0,0.013]
[1733044622192,0.0018649,97134.0,97133.0,0.013]
[1733044624199,0.0018649,97134.0,97133.0,0.3241802]
[1733044624411,0.00522969,97134.0,97133.0,0.013]
[1733044629007,0.00705259,97134.0,97133.0,0.013]
[1733044630681,0.00522969,97134.0,97133.0,0.013]
[1733044635887,0.0018649,97134.0,97133.0,0.013]
[1733044638367,0.0018649,97134.0,97133.0,0.001896]
[1733044641438,0.1287878,97134.0,97133.0,0.001896]
[1733044641874,0.13215581,97134.0,97133.0,0.001896]
[1733044642298,0.28948189,97134.0,97133.0,0.001896]
[1733044642511,0.28765899,97134.0,97133.0,0.41136204]
[1733044642747,0.28765899,97134.0,97133.0,0.001896]
[1733044642962,0.23317812,97134.0,97133.0,0.001896]
[1733044643386,0.38317812,97134.0,97133.0,0.001896]
[1733044643597,0.331013,97128.0,97126.0,0.40946604]
[1733044643815,0.0018229,97127.0,97126.0,0.40946604]
[1733044643998,0.00518602,97127.0,97126.0,0.40946604]
[1733044644142,0.00518602,97127.0,97125.0,0.0017282]
[1733044644394,0.205918,97126.0,97125.0,0.0017282]
[1733044644595,0.2077409,97126.0,97125.0,0.0017282]
[1733044644796,0.21110343,97126.0,97125.0,0.0017282]
[1733044646380,0.21110343,97126.0,97125.0,0.0037282]
[1733044647477,0.21110343,97126.0,97125.0,0.0057282]
[1733044647720,0.21110343,97126.0,97125.0,0.41502019]
[1733044647943,0.20928053,97126.0,97125.0,0.41502019]
[1733044648192,0.20928053,97126.0,97125.0,0.0057282]
[1733044648409,0.21110343,97126.0,97125.0,0.0057282]
[1733044648625,0.21110343,97126.0,97125.0,0.41519298]
[1733044648836,0.20928053,97126.0,97125.0,0.0057282]
[1733044649044,0.21110343,97126.0,97125.0,0.0057282]
[1733044649270,0.21110343,97126.0,97125.0,0.41503046]
[1733044649500,0.20928053,97126.0,97125.0,0.41503046]
[1733044650579,0.20928053,97126.0,97125.0,0.0057282]
[1733044650820,0.21110343,97126.0,97125.0,0.0057282]
[1733044655868,0.00336253,97126.0,97125.0,0.0057282]
[1733044656083,0.205906,97132.0,97125.0,0.0057282]
[1733044656293,0.00335595,97126.0,97125.0,0.0057282]
[1733044656497,0.205914,97128.0,97125.0,0.0057282]
[1733044656701,0.0033587,97126.0,97125.0,0.0057282]
[1733044656911,0.205914,97128.0,97125.0,0.0057282]
[1733044657120,0.00335929,97126.0,97125.0,0.0037282]
[1733044657339,0.205914,97128.0,97125.0,0.0047282]
[1733044657543,0.00335929,97126.0,97125.0,0.0047282]
[1733044657713,0.205914,97128.0,97125.0,0.0047282]
[1733044657921,0.00335929,97126.0,97125.0,0.00423823]
[1733044658160,0.205914,97128.0,97125.0,0.00423823]
[1733044658350,0.00335929,97126.0,97125.0,0.00423823]
[1733044658645,0.205914,97128.0,97125.0,0.00423823]
[1733044658824,0.00335929,97126.0,97125.0,0.00423823]
[1733044659034,0.205914,97128.0,97125.0,0.00423823]
[1733044659265,0.00335929,97126.0,97125.0,0.00423823]
[1733044659470,0.205914,97128.0,97125.0,0.00123823]
[1733044659680,0.00336333,97127.0,97125.0,0.00323823]
[1733044659919,0.00336274,97126.0,97125.0,0.00423823]
[1733044660122,0.205914,97128.0,97125.0,0.00323823]
[1733044660328,0.00336274,97126.0,97125.0,0.00123823]
[1733044660532,0.205907,97131.0,97125.0,0.00323823]
[1733044660707,0.205907,97131.0,97125.0,0.01523823]
[1733044660708,0.00336215,97126.0,97125.0,0.01523823]
[1733044660880,0.205907,97131.0,97130.0,0.01]
[1733044661780,0.205907,97131.0,97125.0,0.00523823]
[1733044661959,0.205916,97127.0,97125.0,0.00523823]
[1733044662192,0.205907,97131.0,97130.0,0.01]
[1733044663159,0.205907,97131.0,97130.0,0.011]
[1733044663371,0.205907,97131.0,97130.0,0.001]
[1733044663805,0.000864,97133.0,97130.0,0.001]
[1733044664012,0.206768,97133.0,97130.0,0.001]
[1733044664411,0.206768,97133.0,97132.0,0.01]
[1733044664610,0.206768,97133.0,97125.0,0.00123823]
[1733044664817,0.205913,97129.0,97125.0,0.00123823]
[1733044665218,0.205905,97132.0,97125.0,0.00123823]
[1733044665901,0.207767,97133.0,97132.0,0.01]